Workbook

Sheet AFU
A1: Date | B1: SalesRep | C1: Sales
A2: 2011-01-12 | B2: Gault | C2: 1271.47
A3: 2011-01-11 | B3: Smith | C3: 1673.38
A4: 2011-01-06 | B4: Franks | C4: 1349.5
A5: 2011-01-03 | B5: Gault | C5: 1415.41
A6: 2011-01-16 | B6: Franks | C6: 1271.47
A7: 2011-01-24 | B7: Pham | C7: 778.59
A8: 2011-01-10 | B8: Smith | C8: 298.87
A9: 2011-01-24 | B9: Smith | C9: 1511.44
A10: 2011-01-13 | B10: Gault | C10: 949.5
A11: 2011-01-25 | B11: Smith | C11: 493.74
A12: 2011-01-10 | B12: Pham | C12: 597.74
A13: 2011-01-29 | B13: Gault | C13: 1112.47
A14: 2011-01-17 | B14: Pham | C14: 1160.57
A15: 2011-01-03 | B15: Gault | C15: 971.64
A16: 2011-01-24 | B16: Franks | C16: 242.91
A17: 2011-01-23 | B17: Gault | C17: 1439.4
A18: 2011-01-20 | B18: Gault | C18: 146.93
A19: 2011-01-25 | B19: Sioux | C19: 1349.5
A20: 2011-01-15 | B20: Smith | C20: 383.84
A21: 2011-01-25 | B21: Gault | C21: 643.72
A22: 2011-01-06 | B22: Smith | C22: 1006.47
A23: 2011-01-24 | B23: Franks | C23: 1646.39
A24: 2011-01-23 | B24: Pham | C24: 482.77
A25: 2011-01-02 | B25: Sioux | C25: 303.84
A26: 2011-01-14 | B26: Chin | C26: 1160.57
A27: 2011-01-26 | B27: Franks | C27: 608.71
A28: 2011-01-13 | B28: Sioux | C28: 1439.4
A29: 2011-01-28 | B29: Franks | C29: 455.81
A30: 2011-01-14 | B30: Gault | C30: 782.71
A31: 2011-01-25 | B31: Gault | C31: 503.79
A32: 2011-01-20 | B32: Pham | C32: 643.72
A33: 2011-01-09 | B33: Franks | C33: 854.55
A34: 2011-01-25 | B34: Pham | C34: 296.89
A35: 2011-01-02 | B35: Sioux | C35: 1217.42
A36: 2011-01-05 | B36: Chin | C36: 1310.43
A37: 2011-01-05 | B37: Smith | C37: 818.61
A38: 2011-01-25 | B38: Chin | C38: 311.87
A39: 2011-01-05 | B39: Chin | C39: 1457.46
A40: 2011-01-09 | B40: Gault | C40: 239.9
A41: 2011-01-13 | B41: Pham | C41: 1177.38
A42: 2011-01-18 | B42: Pham | C42: 968.49
A43: 2011-01-12 | B43: Franks | C43: 505.78
A44: 2011-01-12 | B44: Sioux | C44: 1149.5
A45: 2011-01-10 | B45: Pham | C45: 215.91
A46: 2011-01-01 | B46: Franks | C46: 551.76
A47: 2011-01-17 | B47: Franks | C47: 1133.58
A48: 2011-01-02 | B48: Smith | C48: 390.83
A49: 2011-01-29 | B49: Smith | C49: 459.8
A50: 2011-01-26 | B50: Sioux | C50: 539.8
A51: 2011-01-13 | B51: Gault | C51: 208.89
A52: 2011-01-02 | B52: Chin | C52: 593.78
A53: 2011-01-23 | B53: Pham | C53: 436.81
A54: 2011-01-21 | B54: Gault | C54: 767.68
A55: 2011-01-08 | B55: Smith | C55: 701.74
A56: 2011-01-19 | B56: Franks | C56: 1538.43
A57: 2011-01-24 | B57: Pham | C57: 1082.43
A58: 2011-01-12 | B58: Chin | C58: 1592.41
A59: 2011-01-11 | B59: Smith | C59: 344.85
A60: 2011-01-23 | B60: Smith | C60: 1349.5
A61: 2011-01-23 | B61: Gault | C61: 608.71
A62: 2011-01-30 | B62: Smith | C62: 482.77
A63: 2011-01-05 | B63: Smith | C63: 229.9
A64: 2011-01-29 | B64: Sioux | C64: 759.6
A65: 2011-01-05 | B65: Sioux | C65: 482.77
A66: 2011-01-25 | B66: Pham | C66: 229.9
A67: 2011-01-17 | B67: Smith | C67: 1268.53
A68: 2011-01-22 | B68: Smith | C68: 1215.36
A69: 2011-01-30 | B69: Pham | C69: 229.9
A70: 2011-01-08 | B70: Smith | C70: 1448.37
A71: 2011-01-14 | B71: Gault | C71: 1195.48
A72: 2011-01-09 | B72: Smith | C72: 417.78
A73: 2011-01-22 | B73: Smith | C73: 550.71
A74: 2011-01-10 | B74: Gault | C74: 1149.5
A75: 2011-01-26 | B75: Sioux | C75: 1049.5
A76: 2011-01-14 | B76: Sioux | C76: 1151.52
A77: 2011-01-13 | B77: Pham | C77: 728.73
A78: 2011-01-12 | B78: Smith | C78: 137.94
A79: 2011-01-28 | B79: Pham | C79: 1487.38
A80: 2011-01-22 | B80: Sioux | C80: 239.9
A81: 2011-01-04 | B81: Gault | C81: 791.67
A82: 2011-01-26 | B82: Sioux | C82: 458.83
A83: 2011-01-19 | B83: Gault | C83: 229.9
A84: 2011-01-01 | B84: Smith | C84: 191.92
A85: 2011-01-06 | B85: Pham | C85: 629.7
A86: 2011-01-08 | B86: Sioux | C86: 527.78
A87: 2011-01-28 | B87: Smith | C87: 809.7
A88: 2011-01-12 | B88: Gault | C88: 1471.36
A89: 2011-01-10 | B89: Chin | C89: 1160.57
A90: 2011-01-28 | B90: Smith | C90: 1034.55
A91: 2011-01-22 | B91: Pham | C91: 1079.55
A92: 2011-01-25 | B92: Sioux | C92: 1044.45
A93: 2011-01-18 | B93: Smith | C93: 1177.38
A94: 2011-01-06 | B94: Gault | C94: 263.89
A95: 2011-01-26 | B95: Pham | C95: 458.83
A96: 2011-01-11 | B96: Chin | C96: 1310.43
A97: 2011-01-20 | B97: Franks | C97: 1215.36
A98: 2011-01-23 | B98: Gault | C98: 836.69
A99: 2011-01-20 | B99: Pham | C99: 440.79
A100: 2011-01-03 | B100: Pham | C100: 863.68
A101: 2011-01-05 | B101: Gault | C101: 1127.53
A102: 2011-01-11 | B102: Gault | C102: 436.81
A103: 2011-01-28 | B103: Chin | C103: 335.86
A104: 2011-01-05 | B104: Franks | C104: 265.86
A105: 2011-01-15 | B105: Pham | C105: 1484.45
A106: 2011-01-04 | B106: Sioux | C106: 702.63

Sheet CO
A1: Text cell content will be aligned Left
A2: Text in formulas must be in double quoates "Text"
A3: COUNTIF uses Text for its comparative operators. For example: ">30" or ">"&D2
A4: Logical formulas do not use text for comparative operators
A7: DR | B7: CR | C7: Equal? | D7: >? | E7: DR = CR? | G7: >1 | H7: 1
A8: 1 | B8: 1 | G8: COUNTIF | H8: SUMIF
A9: 2.01 | B9: 2
A10: 23 | B10: 23
A12: Date | C12: Year | D12: Count
A13: 2010-04-16 | C13: 2010
A14: 2010-04-17
A15: 2011-04-16
A16: 2011-04-17

Sheet Scenarios
A1: Budget
B2: Jan | C2: Feb | D2: Mar | E2: Apr | F2: May | G2: Jun | H2: Total
A3: Revenue | B3: 1000 | C3: 1250 | D3: 1370 | E3: 1250 | F3: 2000 | G3: 2215 | H3: =SUM(B3:G3) -> 9085
A4: =A14 -> Expense1 | B4: =B$3*$B14 -> 50 | C4: 62.5 | D4: 68.5 | E4: 62.5 | F4: 100 | G4: 110.75 | H4: 454.25
A5: Expense2 | B5: 75 | C5: 93.75 | D5: 102.75 | E5: 93.75 | F5: 150 | G5: 166.125 | H5: 681.375
A6: Expense3 | B6: 155 | C6: 193.75 | D6: 212.35 | E6: 193.75 | F6: 310 | G6: 343.325 | H6: 1408.175
A7: Expense4 | B7: 225 | C7: 281.25 | D7: 308.25 | E7: 281.25 | F7: 450 | G7: 498.375 | H7: 2044.125
A8: Expense5 | B8: 45 | C8: 56.25 | D8: 61.65 | E8: 56.25 | F8: 90 | G8: 99.675 | H8: 408.825
A9: Expense6 | B9: 120 | C9: 150 | D9: 164.4 | E9: 150 | F9: 240 | G9: =G$3*$B19 -> 265.8 | H9: 1090.2
A10: Total Expenses | B10: =SUM(B4:B9) -> 670 | C10: 837.5 | D10: 917.9 | E10: 837.5 | F10: 1340 | G10: 1484.05 | H10: 6086.95
A11: Net Income | B11: =B3-B10 -> 330 | C11: 412.5 | D11: 452.1 | E11: 412.5 | F11: 660 | G11: 730.95 | H11: 2998.05
A13: Assumptions - Formula Inputs
A14: Expense1 | B14: 0.05
A15: Expense2 | B15: 0.075
A16: Expense3 | B16: 0.155
A17: Expense4 | B17: 0.225
A18: Expense5 | B18: 0.045
A19: Expense6 | B19: 0.12
A21: Assumptions - Formula Inputs
A22: Expense1 | B22: Expense2 | C22: Expense3 | D22: Expense4 | E22: Expense5 | F22: Expense6
A23: 0.05 | B23: 0.075 | C23: 0.155 | D23: 0.225 | E23: 0.045 | F23: 0.12

Sheet CF(1)
A1: Hilights Duplicates | C1: Above Average | E1: Top 10% | H1: Hilights Duplicates | K1: Above Average | N1: Top 20%
A2: Customer | C2: Sales | E2: Sales | H2: Customer | K2: Sales | N2: Sales
A3: Rod Kloer Firm | C3: 3.04 | E3: 3.04 | H3: Rod Kloer Firm | I3: =COUNTIF($A$3:$A$13,H3)>1 -> FALSE | K3: 3.04 | L3: =K3>AVERAGE($C$3:$C$13) -> FALSE | N3: 3.04 | O3: =N3>_xlfn.PERCENTILE.EXC($E$3:$E$13,0.8) -> FALSE
A4: Hal Hinchliff Firm | C4: 19.41 | E4: 19.41 | H4: Hal Hinchliff Firm | I4: TRUE | K4: 19.41 | L4: TRUE | N4: 19.41 | O4: TRUE
A5: Hal Hinchliff Firm | C5: 18.87 | E5: 18.87 | H5: Hal Hinchliff Firm | I5: TRUE | K5: 18.87 | L5: TRUE | N5: 18.87 | O5: FALSE
A6: Shakia Warning Inc. | C6: 6.9 | E6: 6.9 | H6: Shakia Warning Inc. | I6: FALSE | K6: 6.9 | L6: FALSE | N6: 6.9 | O6: FALSE
A7: Cliff Stalworth Firm | C7: 11.37 | E7: 11.37 | H7: Cliff Stalworth Firm | I7: FALSE | K7: 11.37 | L7: FALSE | N7: 11.37 | O7: FALSE
A8: Jackson Kings LLP | C8: 18.89 | E8: 18.89 | H8: Jackson Kings LLP | I8: TRUE | K8: 18.89 | L8: TRUE | N8: 18.89 | O8: TRUE
A9: Jackson Kings LLP | C9: 18.59 | E9: 18.59 | H9: Jackson Kings LLP | I9: TRUE | K9: 18.59 | L9: TRUE | N9: 18.59 | O9: FALSE
A10: Rob Swearegene Company | C10: 7.36 | E10: 7.36 | H10: Rob Swearegene Company | I10: FALSE | K10: 7.36 | L10: FALSE | N10: 7.36 | O10: FALSE
A11: Marcel Mittelsteadt Firm | C11: 13.05 | E11: 13.05 | H11: Marcel Mittelsteadt Firm | I11: FALSE | K11: 13.05 | L11: TRUE | N11: 13.05 | O11: FALSE
A12: Rob Schiesher LLP | C12: 4.29 | E12: 4.29 | H12: Rob Schiesher LLP | I12: FALSE | K12: 4.29 | L12: FALSE | N12: 4.29 | O12: FALSE
A13: Jackson Kings LLP | C13: 11.24 | E13: 11.24 | H13: Jackson Kings LLP | I13: TRUE | K13: 11.24 | L13: FALSE | N13: 11.24 | O13: FALSE

Sheet CF(2)
A1: Hilights Duplicates | C1: Above Average | E1: Top 10% | G1: Icons | I1: Data Bars
A2: Customer | C2: Sales | E2: Sales | G2: Sales | I2: Sales
A3: Rod Kloer Firm | C3: 3.04 | E3: 3.04 | G3: 3.04 | I3: 3.04
A4: Hal Hinchliff Firm | C4: 19.41 | E4: 19.41 | G4: 19.41 | I4: 19.41
A5: Hal Hinchliff Firm | C5: 18.87 | E5: 18.87 | G5: 18.87 | I5: 18.87
A6: Shakia Warning Inc. | C6: 6.9 | E6: 6.9 | G6: 6.9 | I6: 6.9
A7: Cliff Stalworth Firm | C7: 11.37 | E7: 11.37 | G7: 11.37 | I7: 11.37
A8: Jackson Kings LLP | C8: 18.89 | E8: 18.89 | G8: 18.89 | I8: 18.89
A9: Jackson Kings LLP | C9: 18.59 | E9: 18.59 | G9: 18.59 | I9: 18.59
A10: Rob Swearegene Company | C10: 7.36 | E10: 7.36 | G10: 7.36 | I10: 7.36
A11: Marcel Mittelsteadt Firm | C11: 13.05 | E11: 13.05 | G11: 13.05 | I11: 13.05
A12: Rob Schiesher LLP | C12: 4.29 | E12: 4.29 | G12: 4.29 | I12: 4.29
A13: Jackson Kings LLP | C13: 11.24 | E13: 11.24 | G13: 11.24 | I13: 11.24

Sheet Logical
A1: Comparative Operators | C1: 1st number | D1: 2nd number | E1: Logical Formula Result | F1: Logical Formula
A2: > Greater Than | C2: 34 | D2: 43 | F2: =" "&_xll.FORMULATEXT(E2) -> 
A3: >= Greater Than Or Equal To | C3: 34 | D3: 34 | F3: =" "&_xll.FORMULATEXT(E3) -> 
A4: < Less Than | C4: 500 | D4: 100 | F4: =" "&_xll.FORMULATEXT(E4) -> 
A5: <= Less Than Or Equal To | C5: Jo | D5: Joe | F5: =" "&_xll.FORMULATEXT(E5) -> 
A6: = Equal To | C6: Jo | D6: Jo | F6: =" "&_xll.FORMULATEXT(E6) -> 
A7: <> Not Equal To | C7: Jo | D7: Jo | F7: =" "&_xll.FORMULATEXT(E7) -> 

Sheet CF(3)
A1: Highlight Cell Based on another Cells Value
A2: Date to Highlight | B2: 2010-03-09
A4: Date | B4: Sales
A5: 2011-03-07 | B5: 8336 | D5: =A5=$B$2 -> FALSE
A6: 2010-03-11 | B6: 9894 | D6: FALSE
A7: 2011-03-07 | B7: 11686 | D7: FALSE
A8: 2010-03-11 | B8: 7599 | D8: FALSE
A9: 2011-03-07 | B9: 9609 | D9: FALSE
A10: 2010-03-09 | B10: 11210 | D10: TRUE
A11: 2010-03-09 | B11: 12561 | D11: TRUE
A12: 2011-03-07 | B12: 7125 | D12: FALSE
A13: 2010-03-09 | B13: 11140 | D13: TRUE

Sheet CF(4)
A1: Highlight Whole Row for an exact value
A2: Date to Highlight | B2: 2011-03-07
A4: Date | B4: Sales
A5: 2011-03-07 | B5: 8336 | D5: =$A5=$B$2 -> TRUE | E5: TRUE
A6: 2010-03-11 | B6: 9894 | D6: FALSE | E6: FALSE
A7: 2011-03-07 | B7: 11686 | D7: TRUE | E7: TRUE
A8: 2010-03-11 | B8: 7599 | D8: FALSE | E8: FALSE
A9: 2011-03-07 | B9: 9609 | D9: TRUE | E9: TRUE
A10: 2010-03-09 | B10: 11210 | D10: FALSE | E10: FALSE
A11: 2010-03-09 | B11: 12561 | D11: FALSE | E11: FALSE
A12: 2011-03-07 | B12: 7125 | D12: TRUE | E12: TRUE
A13: 2010-03-09 | B13: 11140 | D13: FALSE | E13: FALSE

Sheet CF(5)
A1: Highlight Whole Row for an aproximate value
A2: Income | B2: 5555
A4: Upper Value For Tax | B4: Tax Rate
A5: 0 | B5: 0 | D5: =VLOOKUP($B$2,$A$5:$A$13,1)=$A5 -> FALSE | E5: FALSE
A6: 500 | B6: 0.005 | D6: FALSE | E6: FALSE
A7: 1000 | B7: 0.01 | D7: FALSE | E7: FALSE
A8: 2000 | B8: 0.0125 | D8: FALSE | E8: FALSE
A9: 3000 | B9: 0.0175 | D9: FALSE | E9: FALSE
A10: 5000 | B10: 0.02 | D10: TRUE | E10: TRUE
A11: 10000 | B11: 0.03 | D11: FALSE | E11: FALSE
A12: 20000 | B12: 0.04 | D12: FALSE | E12: FALSE
A13: 30000 | B13: 0.05 | D13: FALSE | E13: FALSE

Sheet CF(6)
D1: Product Commission Rate
D2: =IF(D3=$C$12,COUNTA($D3:D3)&" column ====>>","") ->  | E2: =IF(E3=$C$12,COUNTA($D3:E3)&" column ====>>","") ->  | F2: =IF(F3=$C$12,COUNTA($D3:F3)&" column ====>>","") ->  | G2: =IF(G3=$C$12,COUNTA($D3:G3)&" column ====>>","") -> 4 column ====>> | H2: =IF(H3=$C$12,COUNTA($D3:H3)&" column ====>>","") -> 
D3: Pro1 | E3: Pro2 | F3: Pro3 | G3: Pro4 | H3: Pro5
A4: Sales | B4: =IF(MATCH(C$13,$C$4:$C$10,1)=COUNT(C$4:C4),COUNT(C$4:C4)&" row =>","") ->  | C4: 0 | D4: =(ROW()+COLUMN())/1000 -> 0.008 | E4: 0.009 | F4: 0.01 | G4: 0.011 | H4: 0.012
B5: =IF(MATCH(C$13,$C$4:$C$10,1)=COUNT(C$4:C5),COUNT(C$4:C5)&" row =>","") ->  | C5: =C4+1500 -> 1500 | D5: 0.009 | E5: 0.01 | F5: 0.011 | G5: 0.012 | H5: 0.013
B6: =IF(MATCH(C$13,$C$4:$C$10,1)=COUNT(C$4:C6),COUNT(C$4:C6)&" row =>","") -> 3 row => | C6: =C5+1500 -> 3000 | D6: 0.01 | E6: 0.011 | F6: 0.012 | G6: 0.013 | H6: 0.014
B7: =IF(MATCH(C$13,$C$4:$C$10,1)=COUNT(C$4:C7),COUNT(C$4:C7)&" row =>","") ->  | C7: 4500 | D7: 0.011 | E7: 0.012 | F7: 0.013 | G7: 0.014 | H7: 0.015
B8: =IF(MATCH(C$13,$C$4:$C$10,1)=COUNT(C$4:C8),COUNT(C$4:C8)&" row =>","") ->  | C8: 6000 | D8: 0.012 | E8: 0.013 | F8: 0.014 | G8: 0.015 | H8: 0.016
B9: =IF(MATCH(C$13,$C$4:$C$10,1)=COUNT(C$4:C9),COUNT(C$4:C9)&" row =>","") ->  | C9: 7500 | D9: 0.013 | E9: 0.014 | F9: 0.015 | G9: 0.016 | H9: 0.017
B10: =IF(MATCH(C$13,$C$4:$C$10,1)=COUNT(C$4:C10),COUNT(C$4:C10)&" row =>","") ->  | C10: 9000 | D10: 0.014 | E10: 0.015 | F10: 0.016 | G10: 0.017 | H10: 0.018
B12: Pro | C12: Pro4
B13: =A4 -> Sales | C13: 4200
B14: Tax | C14: =INDEX(D4:H10,MATCH(C13,C4:C10),MATCH(C12,D3:H3,0)) -> 0.013
C15: =VLOOKUP(C13,C4:H10,MATCH(C12,C3:H3,0)) -> 0.013
B17: column | C17: =MATCH(C12,D3:H3,0) -> 4
B18: row | C18: =MATCH(C13,C4:C10) -> 3

Sheet DT
A1: =ROWS(A$1:A1)&")" -> 1) | B1: Data Table 1 Variable
A2: =ROWS(A$1:A2)&")" -> 2) | B2: Data Tables allow you to do what if analysis for 1 or more formulas by changing 1 variable that is present in the "1 or more formulas"
A3: =ROWS(A$1:A3)&")" -> 3) | B3: You must set up the inputs for the "1 variable" as row headers or column headers.
A4: =ROWS(A$1:A4)&")" -> 4) | B4: If your inputs are row headers, the formulas (or references to the formulas) must be listed at the top of the table area.
A5: =ROWS(A$1:A5)&")" -> 5) | B5: The formulas must refer to (directly or indirectly) the original input value cell that all the formulas at the top of the table use.
A6: =ROWS(A$1:A6)&")" -> 6) | B6: The upper left cell should be empty.
A7: =ROWS(A$1:A7)&")" -> 7) | B7: Highlight the empty cell, row headers, formulas and blank table area.
A8: =ROWS(A$1:A8)&")" -> 8) | B8: In Excel 2003, go to the Data menu, Tables
A9: =ROWS(A$1:A9)&")" -> 9) | B9: In Excel 2007, go to the Data Ribbon, Data Tools group, what if analysis, Data Tables
A10: =ROWS(A$1:A10)&")" -> 10) | B10: In the Data Table dialog box: "Row input cells" refers to the column headers (these are the values that sit in a row): what goes in this text box is the "the original input value cell"; "Column input cells" refers to the row headers (these are the values that sit in a column): what goes in this text box is the "the original input value cell".
A11: =ROWS(A$1:A11)&")" -> 11) | B11: In Excel 2003, to See Precedents, go to the Tools menu, Formula Auditing, Trace Precedents. In Excel 2007, to See Precedents, go to the Formulas Ribbon, Formula Auditing group, Trace Precedents.
A12: =ROWS(A$1:A12)&")" -> 12) | B12: When you create a 1 variable or 2 variable Data Table, an array formula is entered that uses the array function TABLE. The first argument in the table function is the "Row input cells"; The second argument in the table function is the "Column input cells".
A13: =ROWS(A$1:A13)&")" -> 13) | B13: Conditional Formatting is on the Home Ribbon in Excel 2007 and in the Formatting menu in Excel 2003. When you create a formula that evaluates to TRUE or False for Conditional Formatting, if you want the whole row to be highlighted: 1) be sure the active cell is in the upper left corner, 2) Lock the Column Reference only, not the Row reference.
B15: Rad Corp. | F15: Units | G15: Sales | H15: Variable Costs | I15: Contribution Margin | J15: Net Income | K15: Total Costs
B16: Income Statement
B17: June, 2008
B18: Sales | C18: =C$27*C28 -> 150000
B19: Variable Costs | C19: =C$27*C29 -> 68450
B20: Contribution Margin | C20: =C18-C19 -> 81550
B21: Fixed Costs | C21: =C30 -> 79250
B22: Net Income | C22: =C20-C21 -> 2300
B24: Total Costs | C24: =C21+C19 -> 147700
B26: Assumptions
B27: Units Sold | C27: 5000
B28: Price per Unit | C28: 30
B29: VariableCost per Unit | C29: 13.69
B30: Fixed Costs | C30: 79250
B31: Start Units Sold | C31: 0
B32: Increment Units Sold | C32: 1000

Sheet GS
A1: =ROW()&")" -> 1) | B1: In Excel 2003, Goal Seek is in the Tools menu. In Excel 2007, Goal Seek is in the Data Ribbon, Data Tools group, What-If Analysis icon. The keyboard shortcut that works for both is: Alt + T + G
A2: =ROW()&")" -> 2) | B2: Goal Seek will change the formula result to a value you want by adjusting one of the formula input values.
A3: =ROW()&")" -> 3) | B3: "Set cell" must be the cell reference where the formula is; "To value" must be the value you want the formula to evaluate to; "By changing cell" must be a number (not a formula) that is in a cell and is used by the formula in the "Set cell" cell.
A5: Rad Corp.
A6: Income Statement
A7: June, 2008
A8: Sales | B8: =B$17*B18 -> 150000
A9: Variable Costs | B9: =B$17*B19 -> 68450
A10: Contribution Margin | B10: =B8-B9 -> 81550
A11: Fixed Costs | B11: =B20 -> 79250
A12: Net Income | B12: =B10-B11 -> 2300
A14: Total Costs | B14: =B11+B9 -> 147700
A16: Assumptions
A17: Units Sold | B17: 5000
A18: Price per Unit | B18: 30
A19: VariableCost per Unit | B19: 13.69
A20: Fixed Costs | B20: 79250
A21: Start Units Sold | B21: 0
A22: Increment Units Sold | B22: 1000
A25: Loan | B25: 10000
A26: Years | B26: 5
A27: Months | B27: =B26*12 -> 60
A28: Annual Rate | B28: 0.1
A29: Monthly Rate | B29: =B28/12 -> 0.008333333333
A30: PMT | B30: =PMT(B29,B27,B25) -> -212.4704471
